[Event "Early-Titled-Tuesday-Blitz-November-28-2023"]
[Site "Chess.com"]
[Date "2023.11.28"]
[Round "3"]
[White "lrestevez"]
[Black "kunaevchess"]
[Result "1-0"]
[WhiteElo "2174"]
[BlackElo "2331"]
[TimeControl "180+1"]
[EndTime "8:28:50 PST"]
[Termination "lrestevez won by resignation"]

1. e4 {[%clk 0:03:00.9]} 1... e5 {[%clk 0:02:28]} 2. Nf3 {[%clk 0:03:00.1]} 2...
Nc6 {[%clk 0:02:26.6]} 3. Bc4 {[%clk 0:03:00.2]} 3... Nf6 {[%clk 0:02:22.7]} 4.
Ng5 {[%clk 0:03:00.7]} 4... d5 {[%clk 0:02:21.4]} 5. exd5 {[%clk 0:03:01.6]}
5... Na5 {[%clk 0:02:21.3]} 6. Bb5+ {[%clk 0:03:01.3]} 6... c6 {[%clk
0:02:20.6]} 7. dxc6 {[%clk 0:03:02.2]} 7... bxc6 {[%clk 0:02:20.4]} 8. Bd3
{[%clk 0:03:03]} 8... Bc5 {[%clk 0:02:18.2]} 9. O-O {[%clk 0:03:00.8]} 9... O-O
{[%clk 0:02:17.5]} 10. Ne4 {[%clk 0:03:01]} 10... Bb6 {[%clk 0:02:16.1]} 11.
Nxf6+ {[%clk 0:02:56.3]} 11... Qxf6 {[%clk 0:02:17]} 12. Nc3 {[%clk 0:02:56.5]}
12... Bf5 {[%clk 0:02:14.8]} 13. Bxf5 {[%clk 0:02:43.3]} 13... Qxf5 {[%clk
0:02:15.7]} 14. d3 {[%clk 0:02:40.7]} 14... Rad8 {[%clk 0:02:14.5]} 15. Qe2
{[%clk 0:02:37.9]} 15... Rfe8 {[%clk 0:02:11.6]} 16. Qe4 {[%clk 0:02:34.6]}
16... Qf6 {[%clk 0:02:05.9]} 17. Be3 {[%clk 0:02:33.3]} 17... c5 {[%clk
0:02:00.5]} 18. Nd5 {[%clk 0:02:28.4]} 18... Qe6 {[%clk 0:01:55.6]} 19. Nxb6
{[%clk 0:02:22.8]} 19... axb6 {[%clk 0:01:56.5]} 20. b3 {[%clk 0:02:22.6]} 20...
Nc6 {[%clk 0:01:56.1]} 21. Qh4 {[%clk 0:02:13.5]} 21... Nd4 {[%clk 0:01:54.3]}
22. Bxd4 {[%clk 0:02:13.2]} 22... cxd4 {[%clk 0:01:50.1]} 23. Rae1 {[%clk
0:02:10.1]} 23... Rc8 {[%clk 0:01:46.9]} 24. Re2 {[%clk 0:02:08.1]} 24... h6
{[%clk 0:01:45.3]} 25. Rfe1 {[%clk 0:02:07.9]} 25... Qd5 {[%clk 0:01:42.2]} 26.
f4 {[%clk 0:02:02.9]} 26... f6 {[%clk 0:01:39.6]} 27. fxe5 {[%clk 0:02:03.1]}
27... Rxe5 {[%clk 0:01:39]} 28. Rxe5 {[%clk 0:01:59.1]} 28... fxe5 {[%clk
0:01:39.9]} 29. Re2 {[%clk 0:01:56.2]} 29... Ra8 {[%clk 0:01:38.8]} 30. a4
{[%clk 0:01:55.6]} 30... b5 {[%clk 0:01:37.2]} 31. axb5 {[%clk 0:01:54.3]} 31...
Qxb5 {[%clk 0:01:36.5]} 32. Qe7 {[%clk 0:01:44.8]} 32... Ra1+ {[%clk 0:01:33.4]}
33. Kf2 {[%clk 0:01:44.2]} 33... Ra5 {[%clk 0:01:15.2]} 34. g3 {[%clk
0:01:39.5]} 34... Qd5 {[%clk 0:01:12.6]} 35. b4 {[%clk 0:01:20.3]} 35... Ra2
{[%clk 0:01:08.3]} 36. Qe8+ {[%clk 0:01:14.5]} 36... Kh7 {[%clk 0:01:07.6]} 37.
Qxe5 {[%clk 0:01:14.3]} 37... Qxe5 {[%clk 0:01:06.5]} 38. Rxe5 {[%clk 0:01:15]}
38... Rxc2+ {[%clk 0:01:06.8]} 39. Kf3 {[%clk 0:01:15.5]} 39... Rc3 {[%clk
0:01:00.2]} 40. Ke4 {[%clk 0:01:14.1]} 40... Rb3 {[%clk 0:00:59.6]} 41. Rb5
{[%clk 0:01:08.1]} 41... Rb2 {[%clk 0:00:59.6]} 42. Kxd4 {[%clk 0:01:08.3]}
42... Rxh2 {[%clk 0:00:59.5]} 43. Re5 {[%clk 0:01:07]} 43... Rg2 {[%clk
0:00:57.1]} 44. Re3 {[%clk 0:01:06.6]} 44... Rb2 {[%clk 0:00:55.7]} 45. Kc5
{[%clk 0:01:03.7]} 45... g5 {[%clk 0:00:55.8]} 46. b5 {[%clk 0:01:03.4]} 46...
Kg6 {[%clk 0:00:55.7]} 47. b6 {[%clk 0:01:03.7]} 47... h5 {[%clk 0:00:55.7]} 48.
Kc6 {[%clk 0:01:03.8]} 48... Kf5 {[%clk 0:00:55.6]} 49. b7 {[%clk 0:01:04]}
49... h4 {[%clk 0:00:47.6]} 50. gxh4 {[%clk 0:01:03.3]} 50... gxh4 {[%clk
0:00:48.5]} 51. d4 {[%clk 0:01:00.4]} 51... Kf4 {[%clk 0:00:47.3]} 52. Rc3
{[%clk 0:01:00.7]} 52... Ke4 {[%clk 0:00:45.2]} 53. d5 {[%clk 0:01:01]} 53...
Ke5 {[%clk 0:00:22.6]} 54. d6 {[%clk 0:00:57]} 1-0

[Event "Early-Titled-Tuesday-Blitz-November-28-2023"]
[Site "Chess.com"]
[Date "2023.11.28"]
[Round "3"]
[White "GothamChess"]
[Black "Barmen_EV"]
[Result "0-1"]
[WhiteElo "2672"]
[BlackElo "2516"]
[TimeControl "180+1"]
[EndTime "8:28:52 PST"]
[Termination "Barmen_EV won by checkmate"]

1. e4 {[%clk 0:03:00.9]} 1... e5 {[%clk 0:02:57.4]} 2. Nc3 {[%clk 0:03:00.6]}
2... Nf6 {[%clk 0:02:56.5]} 3. f4 {[%clk 0:02:58.4]} 3... d5 {[%clk 0:02:54]} 4.
fxe5 {[%clk 0:02:58.9]} 4... Nxe4 {[%clk 0:02:54.5]} 5. Qf3 {[%clk 0:02:59.5]}
5... Nc6 {[%clk 0:02:53.7]} 6. Bb5 {[%clk 0:02:59.3]} 6... Bd7 {[%clk
0:02:34.2]} 7. Nxe4 {[%clk 0:02:52.2]} 7... Nd4 {[%clk 0:02:23.1]} 8. Bxd7+
{[%clk 0:02:30.5]} 8... Qxd7 {[%clk 0:02:23.9]} 9. Qd3 {[%clk 0:02:30.3]} 9...
dxe4 {[%clk 0:02:21.8]} 10. Qxe4 {[%clk 0:02:30.6]} 10... O-O-O {[%clk
0:02:14.5]} 11. c3 {[%clk 0:02:28.7]} 11... Ne6 {[%clk 0:02:09]} 12. d4 {[%clk
0:02:27.5]} 12... c5 {[%clk 0:02:04.7]} 13. Be3 {[%clk 0:02:11.9]} 13... cxd4
{[%clk 0:02:03.6]} 14. cxd4 {[%clk 0:01:59.2]} 14... Bb4+ {[%clk 0:02:01.3]} 15.
Kf2 {[%clk 0:01:42.2]} 15... Nxd4 {[%clk 0:01:54.9]} 16. Nf3 {[%clk 0:01:34.9]}
16... Nxf3 {[%clk 0:00:42.3]} 17. gxf3 {[%clk 0:01:30]} 17... Qb5 {[%clk
0:00:31.1]} 18. Bxa7 {[%clk 0:01:14.5]} 18... Rd2+ {[%clk 0:00:30.4]} 19. Kg3
{[%clk 0:01:13.3]} 19... h5 {[%clk 0:00:06.5]} 20. Rac1+ {[%clk 0:01:03.6]}
20... Kd8 {[%clk 0:00:06.8]} 21. Rhd1 {[%clk 0:00:16.8]} 21... h4+ {[%clk
0:00:07.2]} 22. Kf4 {[%clk 0:00:17.4]} 22... g5+ {[%clk 0:00:07]} 23. Kxg5
{[%clk 0:00:17.9]} 23... f6+ {[%clk 0:00:02.4]} 24. Kxf6 {[%clk 0:00:07.6]}
24... Rf8+ {[%clk 0:00:02.5]} 25. Kg5 {[%clk 0:00:08]} 25... Be7+ {[%clk
0:00:02.3]} 26. Kh5 {[%clk 0:00:03.4]} 26... Qe8+ {[%clk 0:00:01.6]} 27. Qg6
{[%clk 0:00:03.8]} 27... Rh8+ {[%clk 0:00:01.9]} 28. Kg4 {[%clk 0:00:03.8]}
28... Qxg6+ {[%clk 0:00:01.9]} 29. Kh3 {[%clk 0:00:04.3]} 29... Qf5# {[%clk
0:00:02.5]} 0-1

[Event "Early-Titled-Tuesday-Blitz-November-28-2023"]
[Site "Chess.com"]
[Date "2023.11.28"]
[Round "3"]
[White "NowInChess"]
[Black "doublesik"]
[Result "0-1"]
[WhiteElo "2176"]
[BlackElo "2535"]
[TimeControl "180+1"]
[EndTime "8:28:53 PST"]
[Termination "doublesik won on time"]

1. e4 {[%clk 0:03:00.9]} 1... c5 {[%clk 0:02:58.8]} 2. d3 {[%clk 0:03:00.9]}
2... Nc6 {[%clk 0:02:58.2]} 3. g3 {[%clk 0:03:01.4]} 3... g6 {[%clk 0:02:58.6]}
4. Bg2 {[%clk 0:03:01.7]} 4... Bg7 {[%clk 0:02:59]} 5. f4 {[%clk 0:03:01.8]}
5... d6 {[%clk 0:02:55.8]} 6. Nf3 {[%clk 0:03:01.6]} 6... e6 {[%clk 0:02:56.3]}
7. O-O {[%clk 0:03:00.8]} 7... Nge7 {[%clk 0:02:56.9]} 8. c3 {[%clk 0:03:01.1]}
8... O-O {[%clk 0:02:56.1]} 9. Be3 {[%clk 0:03:01.4]} 9... b5 {[%clk 0:02:48.2]}
10. d4 {[%clk 0:03:01.3]} 10... cxd4 {[%clk 0:02:47.5]} 11. cxd4 {[%clk
0:03:02.2]} 11... Bb7 {[%clk 0:02:47.8]} 12. Qd2 {[%clk 0:02:36.5]} 12... Rc8
{[%clk 0:02:45.4]} 13. Nc3 {[%clk 0:02:27.1]} 13... Na5 {[%clk 0:02:42.2]} 14.
b3 {[%clk 0:01:43.7]} 14... b4 {[%clk 0:02:39.7]} 15. Na4 {[%clk 0:01:41]} 15...
Bxe4 {[%clk 0:02:37.2]} 16. Qxb4 {[%clk 0:01:40.1]} 16... Nd5 {[%clk 0:02:26.6]}
17. Qd2 {[%clk 0:01:39.1]} 17... Rc2 {[%clk 0:02:25.8]} 18. Qe1 {[%clk
0:01:34.6]} 18... Qc7 {[%clk 0:01:44.9]} 19. Nd2 {[%clk 0:01:25.2]} 19... Bxg2
{[%clk 0:01:43.2]} 20. Kxg2 {[%clk 0:01:26.1]} 20... Rc8 {[%clk 0:01:00.5]} 21.
Bf2 {[%clk 0:01:23.9]} 21... Qb7 {[%clk 0:00:36.5]} 22. Kg1 {[%clk 0:01:18.2]}
22... Nb4 {[%clk 0:00:35.4]} 23. Nc4 {[%clk 0:00:54.8]} 23... Nxc4 {[%clk
0:00:33.2]} 24. bxc4 {[%clk 0:00:54.1]} 24... Nd3 {[%clk 0:00:33]} 25. Qd1
{[%clk 0:00:34]} 25... Rxf2 {[%clk 0:00:31.9]} 26. Rxf2 {[%clk 0:00:33.3]} 26...
Nxf2 {[%clk 0:00:24.8]} 27. Kxf2 {[%clk 0:00:34.2]} 27... Rxc4 {[%clk
0:00:24.1]} 28. Rb1 {[%clk 0:00:24]} 28... Qc7 {[%clk 0:00:19.5]} 29. Rb3 {[%clk
0:00:03.9]} 29... Bxd4+ {[%clk 0:00:19.4]} 30. Kg2 {[%clk 0:00:03.3]} 30... e5
{[%clk 0:00:19.4]} 31. Nb2 {[%clk 0:00:02.6]} 31... Rc2+ {[%clk 0:00:19.6]} 32.
Kh3 {[%clk 0:00:02.1]} 32... Rxb2 {[%clk 0:00:20.1]} 33. Rxb2 {[%clk 0:00:01.2]}
33... Bxb2 {[%clk 0:00:21]} 34. Qb3 {[%clk 0:00:01]} 34... Qd7+ {[%clk
0:00:20.7]} 0-1

[Event "Early-Titled-Tuesday-Blitz-November-28-2023"]
[Site "Chess.com"]
[Date "2023.11.28"]
[Round "3"]
[White "Jojo_898"]
[Black "KejJaj"]
[Result "1-0"]
[WhiteElo "2379"]
[BlackElo "2144"]
[TimeControl "180+1"]
[EndTime "8:28:54 PST"]
[Termination "Jojo_898 won by resignation"]

1. e4 {[%clk 0:03:00.9]} 1... c5 {[%clk 0:03:00]} 2. Nf3 {[%clk 0:02:59.1]} 2...
d6 {[%clk 0:03:00.7]} 3. c3 {[%clk 0:02:58.9]} 3... Nf6 {[%clk 0:02:59.9]} 4.
Bd3 {[%clk 0:02:53]} 4... Bg4 {[%clk 0:03:00.5]} 5. h3 {[%clk 0:02:50.6]} 5...
Bxf3 {[%clk 0:02:58.2]} 6. Qxf3 {[%clk 0:02:51.5]} 6... Nc6 {[%clk 0:02:58.5]}
7. Bc2 {[%clk 0:02:48.3]} 7... g6 {[%clk 0:02:54.5]} 8. O-O {[%clk 0:02:47.3]}
8... Bg7 {[%clk 0:02:54.3]} 9. Rd1 {[%clk 0:02:43.9]} 9... Nd7 {[%clk
0:02:49.8]} 10. Qe3 {[%clk 0:02:41.1]} 10... e5 {[%clk 0:02:38.6]} 11. Na3
{[%clk 0:02:40]} 11... O-O {[%clk 0:02:30.7]} 12. d3 {[%clk 0:02:30.2]} 12... a6
{[%clk 0:02:20.4]} 13. Nc4 {[%clk 0:02:26.6]} 13... b5 {[%clk 0:02:15.4]} 14.
Nxd6 {[%clk 0:02:12.6]} 14... Qc7 {[%clk 0:02:07.5]} 15. Nf5 {[%clk 0:02:06.3]}
15... gxf5 {[%clk 0:02:06.3]} 16. exf5 {[%clk 0:02:07.2]} 16... Kh8 {[%clk
0:01:58.6]} 17. Qf3 {[%clk 0:02:03]} 17... Nf6 {[%clk 0:01:54.2]} 18. Bg5 {[%clk
0:02:00.5]} 18... Rg8 {[%clk 0:01:50.2]} 19. Bb3 {[%clk 0:01:59.1]} 19... Na5
{[%clk 0:01:38.3]} 20. Bc2 {[%clk 0:01:51.2]} 20... Rad8 {[%clk 0:01:33.3]} 21.
Rac1 {[%clk 0:01:47.4]} 21... Nb7 {[%clk 0:01:30.9]} 22. Qe3 {[%clk 0:01:28.3]}
22... Rde8 {[%clk 0:01:24.2]} 23. Bb3 {[%clk 0:01:14.8]} 23... Nd6 {[%clk
0:01:23.2]} 24. Qf3 {[%clk 0:01:08]} 24... h6 {[%clk 0:01:17.9]} 25. Bh4 {[%clk
0:01:03.1]} 25... Kh7 {[%clk 0:00:53.9]} 26. g4 {[%clk 0:00:54.5]} 26... Qd7
{[%clk 0:00:49.3]} 27. Bg3 {[%clk 0:00:45.7]} 27... Qb7 {[%clk 0:00:38.9]} 28.
Qe3 {[%clk 0:00:42.9]} 28... Nd5 {[%clk 0:00:36.1]} 29. Qf3 {[%clk 0:00:32.4]}
29... Nf6 {[%clk 0:00:34.6]} 30. Qxb7 {[%clk 0:00:31.2]} 30... Nxb7 {[%clk
0:00:34.2]} 31. Bxf7 {[%clk 0:00:31.7]} 31... Rgf8 {[%clk 0:00:31.7]} 32. Bxe8
{[%clk 0:00:31.9]} 32... Rxe8 {[%clk 0:00:32.6]} 33. Re1 {[%clk 0:00:31.2]}
33... Nd7 {[%clk 0:00:30.6]} 34. d4 {[%clk 0:00:25.6]} 34... cxd4 {[%clk
0:00:29.6]} 35. cxd4 {[%clk 0:00:24.9]} 35... e4 {[%clk 0:00:29.3]} 36. Rc7
{[%clk 0:00:24.9]} 36... Re7 {[%clk 0:00:22.6]} 37. Rxb7 {[%clk 0:00:24.5]}
37... Bxd4 {[%clk 0:00:23.5]} 38. Rd1 {[%clk 0:00:22.8]} 38... Bxb2 {[%clk
0:00:16.5]} 39. Rdxd7 {[%clk 0:00:22.5]} 39... Rxd7 {[%clk 0:00:16.4]} 40. Rxd7+
{[%clk 0:00:23.4]} 40... Kg8 {[%clk 0:00:17]} 41. Ra7 {[%clk 0:00:22.8]} 1-0

[Event "Early-Titled-Tuesday-Blitz-November-28-2023"]
[Site "Chess.com"]
[Date "2023.11.28"]
[Round "3"]
[White "jefferyx"]
[Black "BardArtem"]
[Result "1-0"]
[WhiteElo "3021"]
[BlackElo "2769"]
[TimeControl "180+1"]
[EndTime "8:29:00 PST"]
[Termination "jefferyx won by checkmate"]

1. e4 {[%clk 0:03:00.9]} 1... c6 {[%clk 0:02:53.4]} 2. d4 {[%clk 0:02:59.2]}
2... d5 {[%clk 0:02:54.3]} 3. e5 {[%clk 0:02:59.6]} 3... Bf5 {[%clk 0:02:53.9]}
4. Nf3 {[%clk 0:02:59.9]} 4... e6 {[%clk 0:02:54.1]} 5. Be2 {[%clk 0:03:00.6]}
5... c5 {[%clk 0:02:53.1]} 6. Be3 {[%clk 0:02:53.8]} 6... Qb6 {[%clk 0:02:52.9]}
7. Nc3 {[%clk 0:02:48.1]} 7... Nc6 {[%clk 0:02:52.5]} 8. O-O {[%clk 0:02:15.5]}
8... Qxb2 {[%clk 0:02:49.9]} 9. Qe1 {[%clk 0:02:14.5]} 9... cxd4 {[%clk
0:02:46.3]} 10. Nxd4 {[%clk 0:02:15.4]} 10... Bb4 {[%clk 0:02:31.2]} 11. Ndb5
{[%clk 0:01:54.3]} 11... a6 {[%clk 0:02:12.4]} 12. Rb1 {[%clk 0:01:49.2]} 12...
Qxc2 {[%clk 0:02:11.4]} 13. Rxb4 {[%clk 0:01:46.9]} 13... axb5 {[%clk
0:02:00.2]} 14. Bd1 {[%clk 0:01:46.1]} 14... Qd3 {[%clk 0:01:55.9]} 15. Be2
{[%clk 0:01:43.1]} 15... Qc2 {[%clk 0:01:53.3]} 16. Nxb5 {[%clk 0:01:30.5]}
16... Nxb4 {[%clk 0:01:44.7]} 17. Qxb4 {[%clk 0:01:31.4]} 17... Ne7 {[%clk
0:01:27.5]} 18. Re1 {[%clk 0:01:30.8]} 18... O-O {[%clk 0:01:23.1]} 19. Qxe7
{[%clk 0:01:25.1]} 19... Qxa2 {[%clk 0:01:08.5]} 20. h4 {[%clk 0:01:23.9]} 20...
Qb2 {[%clk 0:00:56.2]} 21. Nd4 {[%clk 0:01:15]} 21... Ra1 {[%clk 0:00:54.4]} 22.
Rxa1 {[%clk 0:01:12.2]} 22... Qxa1+ {[%clk 0:00:55.3]} 23. Kh2 {[%clk
0:01:10.1]} 23... Qb1 {[%clk 0:00:47]} 24. Qc7 {[%clk 0:01:00.1]} 24... Qe4
{[%clk 0:00:33.5]} 25. Kg3 {[%clk 0:00:55.1]} 25... h6 {[%clk 0:00:26.4]} 26.
Bf3 {[%clk 0:00:45.7]} 26... Qb1 {[%clk 0:00:25.6]} 27. Qe7 {[%clk 0:00:39.8]}
27... Be4 {[%clk 0:00:20.6]} 28. Bg4 {[%clk 0:00:37.1]} 28... Qf1 {[%clk
0:00:16.2]} 29. Bh3 {[%clk 0:00:36.5]} 29... b5 {[%clk 0:00:15.8]} 30. Bxh6
{[%clk 0:00:24.3]} 30... b4 {[%clk 0:00:10.1]} 31. Nxe6 {[%clk 0:00:23]} 31...
Rb8 {[%clk 0:00:05.4]} 32. Ng5 {[%clk 0:00:17.6]} 32... Bg6 {[%clk 0:00:04.4]}
33. e6 {[%clk 0:00:17.7]} 33... Rf8 {[%clk 0:00:03.5]} 34. exf7+ {[%clk
0:00:16]} 34... Bxf7 {[%clk 0:00:04.4]} 35. Be6 {[%clk 0:00:15.5]} 35... gxh6
{[%clk 0:00:02.2]} 36. Bxf7+ {[%clk 0:00:15.3]} 36... Kg7 {[%clk 0:00:01.4]} 37.
Qe5# {[%clk 0:00:15.7]} 1-0

[Event "Early-Titled-Tuesday-Blitz-November-28-2023"]
[Site "Chess.com"]
[Date "2023.11.28"]
[Round "3"]
[White "Mikhail_Golubev"]
[Black "nicolochessit"]
[Result "0-1"]
[WhiteElo "2574"]
[BlackElo "2338"]
[TimeControl "180+1"]
[EndTime "8:29:04 PST"]
[Termination "nicolochessit won on time"]

1. e4 {[%clk 0:03:00.9]} 1... c6 {[%clk 0:02:59.6]} 2. Nf3 {[%clk 0:02:58.6]}
2... d5 {[%clk 0:03:00.5]} 3. Nc3 {[%clk 0:02:58.7]} 3... Bg4 {[%clk 0:03:00.2]}
4. h3 {[%clk 0:02:56.5]} 4... Bxf3 {[%clk 0:02:59.6]} 5. Qxf3 {[%clk 0:02:55.9]}
5... Nf6 {[%clk 0:03:00.5]} 6. d4 {[%clk 0:02:34.9]} 6... e6 {[%clk 0:02:48.1]}
7. Bd3 {[%clk 0:02:24.5]} 7... dxe4 {[%clk 0:02:30.9]} 8. Nxe4 {[%clk
0:02:25.4]} 8... Qxd4 {[%clk 0:02:28.9]} 9. Be3 {[%clk 0:02:24.4]} 9... Bb4+
{[%clk 0:02:22.7]} 10. Ke2 {[%clk 0:02:10.5]} 10... Qd8 {[%clk 0:02:16]} 11.
Nxf6+ {[%clk 0:01:47.9]} 11... Qxf6 {[%clk 0:02:14.5]} 12. Qg4 {[%clk
0:01:24.6]} 12... Be7 {[%clk 0:01:57.4]} 13. Bd4 {[%clk 0:01:17.9]} 13... Qg5
{[%clk 0:01:39.7]} 14. Qxg5 {[%clk 0:01:16.4]} 14... Bxg5 {[%clk 0:01:40.6]} 15.
Bxg7 {[%clk 0:01:16.1]} 15... Rg8 {[%clk 0:01:40.5]} 16. Bd4 {[%clk 0:01:08.5]}
16... h5 {[%clk 0:01:32.7]} 17. h4 {[%clk 0:01:04.7]} 17... Be7 {[%clk
0:01:24.9]} 18. g3 {[%clk 0:01:03.2]} 18... Nd7 {[%clk 0:01:13.7]} 19. Rad1
{[%clk 0:00:59.8]} 19... Bf6 {[%clk 0:00:48.1]} 20. Be3 {[%clk 0:00:49.2]} 20...
O-O-O {[%clk 0:00:19.5]} 21. c3 {[%clk 0:00:35.7]} 21... a6 {[%clk 0:00:14]} 22.
Be4 {[%clk 0:00:30.1]} 22... Ne5 {[%clk 0:00:10.4]} 23. b3 {[%clk 0:00:22.7]}
23... Ng4 {[%clk 0:00:09]} 24. Bd2 {[%clk 0:00:14]} 24... Rd7 {[%clk 0:00:06.8]}
25. f3 {[%clk 0:00:10.2]} 25... Ne5 {[%clk 0:00:04.7]} 26. Bf4 {[%clk
0:00:09.5]} 26... Rgd8 {[%clk 0:00:04.6]} 27. Rxd7 {[%clk 0:00:08.7]} 27... Rxd7
{[%clk 0:00:04.7]} 28. Rd1 {[%clk 0:00:07.9]} 28... Ng6 {[%clk 0:00:04.3]} 29.
Bc1 {[%clk 0:00:04.5]} 29... Rxd1 {[%clk 0:00:03.7]} 30. Kxd1 {[%clk 0:00:03.8]}
30... Bxc3 {[%clk 0:00:04.6]} 31. Ke2 {[%clk 0:00:03.1]} 31... Be5 {[%clk
0:00:04.2]} 32. Kf2 {[%clk 0:00:01.7]} 32... f5 {[%clk 0:00:03]} 0-1

[Event "Early-Titled-Tuesday-Blitz-November-28-2023"]
[Site "Chess.com"]
[Date "2023.11.28"]
[Round "3"]
[White "Amirreza_p"]
[Black "TigrVShlyape"]
[Result "1-0"]
[WhiteElo "2752"]
[BlackElo "2971"]
[TimeControl "180+1"]
[EndTime "8:29:05 PST"]
[Termination "Amirreza_p won on time"]

1. e4 {[%clk 0:03:00.9]} 1... c5 {[%clk 0:02:59.4]} 2. c3 {[%clk 0:03:00.3]}
2... Nf6 {[%clk 0:02:58.3]} 3. e5 {[%clk 0:02:59.6]} 3... Nd5 {[%clk 0:02:58.8]}
4. d4 {[%clk 0:02:59.3]} 4... cxd4 {[%clk 0:02:58.9]} 5. cxd4 {[%clk 0:03:00.2]}
5... e6 {[%clk 0:02:56.2]} 6. Nf3 {[%clk 0:02:59.4]} 6... b6 {[%clk 0:02:56.2]}
7. Nc3 {[%clk 0:02:58.1]} 7... Nxc3 {[%clk 0:02:53.1]} 8. bxc3 {[%clk 0:02:59]}
8... Qc7 {[%clk 0:02:51.1]} 9. Bd2 {[%clk 0:02:57.4]} 9... Bb7 {[%clk
0:02:42.3]} 10. Bd3 {[%clk 0:02:57]} 10... d6 {[%clk 0:02:42.1]} 11. O-O {[%clk
0:02:57.4]} 11... Nd7 {[%clk 0:02:41.9]} 12. Re1 {[%clk 0:02:57.3]} 12... Be7
{[%clk 0:02:15.8]} 13. Rc1 {[%clk 0:02:32.4]} 13... dxe5 {[%clk 0:02:12.7]} 14.
Nxe5 {[%clk 0:02:33.3]} 14... Nxe5 {[%clk 0:02:09.9]} 15. Rxe5 {[%clk
0:02:34.2]} 15... O-O {[%clk 0:02:07.4]} 16. Qh5 {[%clk 0:02:25.9]} 16... g6
{[%clk 0:02:05.9]} 17. Qh6 {[%clk 0:02:24.5]} 17... Bd6 {[%clk 0:01:48]} 18. Re2
{[%clk 0:01:57]} 18... Rfe8 {[%clk 0:01:42.6]} 19. h4 {[%clk 0:01:51.1]} 19...
Bf8 {[%clk 0:01:18.6]} 20. Qg5 {[%clk 0:01:45.2]} 20... Bg7 {[%clk 0:01:11.6]}
21. h5 {[%clk 0:01:42.4]} 21... Rad8 {[%clk 0:00:55.3]} 22. Qh4 {[%clk
0:01:36.2]} 22... Rd5 {[%clk 0:00:51.9]} 23. hxg6 {[%clk 0:01:30.4]} 23... hxg6
{[%clk 0:00:51.4]} 24. Bg5 {[%clk 0:01:29.8]} 24... e5 {[%clk 0:00:33.5]} 25. c4
{[%clk 0:01:13.3]} 25... Ra5 {[%clk 0:00:27]} 26. d5 {[%clk 0:01:12.9]} 26... f5
{[%clk 0:00:15.9]} 27. Re3 {[%clk 0:00:53.4]} 27... e4 {[%clk 0:00:14.6]} 28.
Rg3 {[%clk 0:00:25.8]} 28... exd3 {[%clk 0:00:11.5]} 29. Bf6 {[%clk 0:00:19.5]}
29... Qf7 {[%clk 0:00:10.5]} 30. Bxg7 {[%clk 0:00:14.7]} 30... Qxg7 {[%clk
0:00:10.8]} 31. Rxd3 {[%clk 0:00:15.3]} 31... Rxa2 {[%clk 0:00:09.2]} 32. d6
{[%clk 0:00:14.9]} 32... Ra1 {[%clk 0:00:09.2]} 33. d7 {[%clk 0:00:07.1]} 33...
Rxc1+ {[%clk 0:00:08]} 34. Kh2 {[%clk 0:00:07.7]} 1-0

[Event "Early-Titled-Tuesday-Blitz-November-28-2023"]
[Site "Chess.com"]
[Date "2023.11.28"]
[Round "3"]
[White "baki83"]
[Black "tantaan"]
[Result "1-0"]
[WhiteElo "2818"]
[BlackElo "2357"]
[TimeControl "180+1"]
[EndTime "8:29:05 PST"]
[Termination "baki83 won by resignation"]

1. e4 {[%clk 0:03:00.9]} 1... c5 {[%clk 0:02:59.6]} 2. Nf3 {[%clk 0:03:00.4]}
2... e6 {[%clk 0:02:59.7]} 3. b3 {[%clk 0:02:59]} 3... a6 {[%clk 0:02:58.3]} 4.
Bb2 {[%clk 0:02:58.6]} 4... Nc6 {[%clk 0:02:58.7]} 5. g3 {[%clk 0:02:54.9]} 5...
d5 {[%clk 0:02:58.4]} 6. exd5 {[%clk 0:02:54.7]} 6... exd5 {[%clk 0:02:59.3]} 7.
d4 {[%clk 0:02:55.1]} 7... Nf6 {[%clk 0:02:59.6]} 8. Bg2 {[%clk 0:02:55]} 8...
Be7 {[%clk 0:02:59.3]} 9. O-O {[%clk 0:02:54.9]} 9... O-O {[%clk 0:02:59.7]} 10.
dxc5 {[%clk 0:02:55.1]} 10... Bxc5 {[%clk 0:02:57.7]} 11. Nc3 {[%clk 0:02:55.3]}
11... h6 {[%clk 0:02:45.3]} 12. Ne2 {[%clk 0:02:44.7]} 12... Ne4 {[%clk
0:02:35.5]} 13. Nf4 {[%clk 0:02:38.7]} 13... Ne7 {[%clk 0:02:27.5]} 14. Ne5
{[%clk 0:02:30]} 14... Qb6 {[%clk 0:02:13.1]} 15. Ned3 {[%clk 0:02:21.4]} 15...
Bd4 {[%clk 0:02:06.5]} 16. c4 {[%clk 0:01:52.9]} 16... dxc4 {[%clk 0:01:34.4]}
17. Bxe4 {[%clk 0:01:50.9]} 17... cxd3 {[%clk 0:01:31.1]} 18. Bxd4 {[%clk
0:01:50.9]} 18... Qxd4 {[%clk 0:01:30.1]} 19. Qxd3 {[%clk 0:01:51.5]} 19... Qxd3
{[%clk 0:01:28.2]} 20. Nxd3 {[%clk 0:01:51.7]} 20... Bf5 {[%clk 0:01:24.6]} 21.
Rfe1 {[%clk 0:01:47.9]} 21... Bxe4 {[%clk 0:01:23.8]} 22. Rxe4 {[%clk
0:01:47.8]} 22... Nd5 {[%clk 0:01:15.2]} 23. Nc5 {[%clk 0:01:47.6]} 23... b6
{[%clk 0:01:11.8]} 24. Re5 {[%clk 0:01:36.5]} 24... Nf6 {[%clk 0:01:06.4]} 25.
Na4 {[%clk 0:01:33.4]} 25... b5 {[%clk 0:01:04.2]} 26. Nc5 {[%clk 0:01:33.2]}
26... Rfd8 {[%clk 0:00:57.4]} 27. h3 {[%clk 0:01:15.7]} 27... Rd2 {[%clk
0:00:53.8]} 28. a4 {[%clk 0:01:15]} 28... b4 {[%clk 0:00:48]} 29. Rae1 {[%clk
0:01:06.8]} 29... a5 {[%clk 0:00:36.9]} 30. Nb7 {[%clk 0:01:05.4]} 30... Nd5
{[%clk 0:00:32.8]} 31. Re8+ {[%clk 0:00:59.8]} 31... Rxe8 {[%clk 0:00:31.9]} 32.
Rxe8+ {[%clk 0:01:00.3]} 32... Kh7 {[%clk 0:00:32.5]} 33. Nxa5 {[%clk
0:01:00.2]} 33... Nc3 {[%clk 0:00:27.3]} 34. Nc4 {[%clk 0:00:48.8]} 34... Rd1+
{[%clk 0:00:22.5]} 35. Kg2 {[%clk 0:00:47.6]} 35... Rb1 {[%clk 0:00:23.1]} 36.
a5 {[%clk 0:00:45.7]} 36... Rxb3 {[%clk 0:00:20.3]} 37. a6 {[%clk 0:00:36.6]}
37... Nb5 {[%clk 0:00:19.7]} 38. Rb8 {[%clk 0:00:36.8]} 38... Rc3 {[%clk
0:00:17]} 39. Rxb5 {[%clk 0:00:36.8]} 39... Rxc4 {[%clk 0:00:17.6]} 40. a7
{[%clk 0:00:37.3]} 40... Rc8 {[%clk 0:00:17.9]} 41. Rxb4 {[%clk 0:00:37.9]}
41... Ra8 {[%clk 0:00:17.9]} 42. Ra4 {[%clk 0:00:38.3]} 42... Kg6 {[%clk
0:00:17.9]} 43. Kf3 {[%clk 0:00:37.6]} 43... Kf6 {[%clk 0:00:18.6]} 44. Ra6+
{[%clk 0:00:37.7]} 44... Ke7 {[%clk 0:00:19]} 45. Ke4 {[%clk 0:00:38.3]} 45...
f6 {[%clk 0:00:18.1]} 46. Kf5 {[%clk 0:00:37.8]} 46... Kf7 {[%clk 0:00:17.1]}
47. h4 {[%clk 0:00:38.3]} 47... g6+ {[%clk 0:00:17.4]} 48. Kf4 {[%clk
0:00:38.8]} 48... h5 {[%clk 0:00:17.2]} 49. Ke4 {[%clk 0:00:39]} 49... Ke7
{[%clk 0:00:17.4]} 50. Kd5 {[%clk 0:00:38.6]} 50... g5 {[%clk 0:00:15.6]} 51.
Ke4 {[%clk 0:00:38]} 51... gxh4 {[%clk 0:00:15.8]} 52. gxh4 {[%clk 0:00:38.3]}
52... Kf7 {[%clk 0:00:16.6]} 53. Kf5 {[%clk 0:00:38.6]} 53... Ke7 {[%clk
0:00:17.1]} 54. Kg6 {[%clk 0:00:38.1]} 1-0